{"text_format":"1","workbook":"xlsx","n_sheets":9,"sheets":["Main Form","PolyJet","J835-J850","J55, J35Pro, J5","FortusPlus","FortusClassic","F123 Series","Origin One","Dimension-Fortus 250"],"not_rendered":{"charts":0,"images":1,"macros":0,"external_links":0,"defined_names":17,"comments":0,"pivot_tables":0},"unopened":[],"bounds":{"document_bytes":16777216,"sheet_cells":100000,"rows_first":2000,"rows_last":500,"rows_between":2000,"halvings":0,"cell_chars":16384,"cell_head_chars":4096},"cells_cut":0,"cells_raw":0,"read":"whole","date_system":"1900"}

{"sheet":"Main Form","index":0,"n_rows":94,"n_cols":15,"rows_kept":94,"cut":false,"hidden":false,"merged":[[38,7,39,14],[19,8,19,13],[32,13,33,14],[32,9,33,12],[34,9,35,14],[36,7,37,14],[41,7,42,14],[21,8,30,13],[4,1,5,14],[8,2,8,6],[12,2,12,6],[7,8,7,13],[7,2,7,6],[9,2,9,6],[11,1,11,6],[13,2,13,6],[10,1,10,6],[15,2,15,6],[17,2,17,6],[14,8,14,13],[15,8,18,13],[8,8,13,14],[0,1,3,6],[0,7,0,14],[1,7,1,14],[2,7,2,14],[3,7,3,14],[19,1,19,2],[92,1,92,5],[14,2,14,6],[37,3,37,6],[35,3,35,6],[35,1,35,2],[36,1,36,2],[36,3,36,6],[37,1,37,2],[34,1,34,6],[28,2,28,6],[20,2,20,6],[21,2,21,6],[38,1,38,2],[38,3,38,6],[22,2,22,6],[39,1,43,6],[23,2,23,6],[25,2,25,6],[30,1,32,6],[29,2,29,6],[26,1,26,6],[27,2,27,6]]}
[null,null,null,null,null,null,null,"CADimensions, Inc.\n6310 Fly Road\nEast Syracuse, NY 13057"]
[null,null,null,null,null,null,null,"www.cadimensions.com"]
[null,null,null,null,null,null,null,"877-223-4255 \nEmail request form to:"]
[null,null,null,null,null,null,null,"Laura Sage 315-530-1810 Direct  lsage@cadimensions.com"]
[null,"Printer Materials Order Form- Commercial"]
[]
[null,null,null,null,null,null,null,null,null,null,null,null,null,null,"updated 9.9.2025"]
[null,"Order Date","required field",null,null,null,null,null,"To Place an Order:"]
[null,"PO# or Reference #",null,null,null,null,null,null,"1) Fill out this \"Main Form\" tab with necessary information\n2) Go to each Printer tab for the material you want to order\n3) Enter the quantity for each item you want to order\n4) Return to \"Main Form\" tab to view Order Total\n5) Save form and email to: lsage@cadimensions.com"]
[null,"Printer Serial #"]
[null,"Standard Terms are NET30 and FOB Shipping Point/Origin"]
[null,"Ship to Information:"]
[null,"Company Name","required field"]
[null,"Contact Name","required field"]
[null,"Email Address","required field"]
[null,"Address","required field",null,null,null,null,null,"New Pricing in effect September 1, 2025"]
[null,"City ","req","State","req","Zip","req"]
[null,"Phone"]
[]
[null,"Bill to Information:",null,null,null,"same as Ship to?","Y/N?"]
[null,"Company Name",{"$f":"IF(G20=\"Yes\",C13,B93)","v":"required field"},null,null,null,null,null,"Customer Notes:"]
[null,"Contact Name",{"$f":"IF(G20=\"Yes\",C14,B93)","v":"required field"},null,null,null,null,null,"Enter any special instructions here"]
[null,"Email Address",{"$f":"IF(G20=\"Yes\",C15,B93)","v":"required field"}]
[null,"Address",{"$f":"IF(G20=\"Yes\",C16,B93)","v":"required field"}]
[null,"City ",{"$f":"IF(G20=\"Yes\",C17,B94)","v":"req"},"State",{"$f":"IF(G20=\"Yes\",E17,B94)","v":"req"},"Zip",{"$f":"IF(G20=\"Yes\",G17,B94)","v":"req"}]
[null,"Phone"]
[null,"Credit Card Information:"]
[null,"CC Billing Address"]
[null,"Email CC receipt to:"]
[null,"Last 4 digits of CC or \"NEW\"","***see below"]
[null,"***Please do not email the full credit card number.  If you have used a card previously, please provide the last 4 digits only.  Otherwise indicate \"NEW\" and we will call you for card information."]
[]
[null,null,null,null,null,null,null,null,null,"Grand Total:",null,null,null,{"$f":"SUM(PolyJet!F128,FortusPlus!F128,FortusClassic!L86,'J835-J850'!F37, 'Dimension-Fortus 250'!F53,'F123 Series'!F91,'J55, J35Pro, J5'!F35:F36,'Origin One'!F77:F77)","v":0}]
[]
[null,"Shipping Information:",null,null,null,null,null,null,null,"Grand Total does not include any applicable taxes or shipping charges.  *Prices subject to change"]
[null,"Shipping Method (pick from list):",null,"required field"]
[null,"Prepay & Add or Collect (pick from list):",null,"required field"]
[null,"If shipping Collect- Carrier Acct #:"]
[null,"FOB Terms:",null,"Shipping Point",null,null,null,"http://www.cadimensions.com"]
[]
[]
[]
[]
[null,null,null,null,null,null,null,null,null,null,null,null,null,null,"updated 2.7.25"]
[]
[]
[]
[]
[]
[]
[]
[]
[]
[]
[]
[]
[]
[]
[null,"Jan 18, 2017 changes:"]
[null,"Updated OBJ-04071 description"]
[null,"Nov 15, 2016 changes:"]
[null,"Added Fortus SR-35 material (355-03135- Plus) (311-30235- Classic)"]
[null,"Added SUP706 for Objet30 Desktop"]
[null,"Added SUP706 for J750"]
[null,"Added Fortus Plus- ST130 (355-03150)"]
[null,"Added Fortus Plus- Nylon 6 Model Material (355-02250)"]
[null,"Corrected price on OBJ-03201 and OBJ-03326-V (from $1350 to $1348)"]
[]
[]
[]
[]
[]
[]
[]
[null,"Ground"]
[null,"3 Day"]
[null,"2nd Day Air"]
[null,"Standard Overnight- PM Delivery"]
[null,"Priority Overnight- AM Delivery"]
[null,"First Overnight- Early AM Delivery"]
[null,"LTL (Truck)"]
[]
[null,"Prepay & Add"]
[null,"Collect"]
[null,"Third Party"]
[]
[null,"YES"]
[null,"n/a"]
[]
[null,"Yes"]
[null,"No"]
[null,"Y/N?"]
[null,"required field"]
[null,"req"]

{"sheet":"PolyJet","index":1,"n_rows":128,"n_cols":6,"rows_kept":128,"cut":false,"hidden":false,"merged":[[0,1,4,5],[5,1,6,5],[72,1,72,5],[128,4,128,5],[8,1,8,5],[27,1,27,5],[66,1,66,5],[39,1,39,5],[115,1,115,5],[102,1,102,5],[61,1,61,5],[69,1,69,5]]}
[]
[]
[]
[]
[]
[null,"PolyJet Order Form"]
[]
[null,"Part Number","Description","$/Unit","QTY Ordered","Sub Total"]
[null,"1.0 Kg Cartridges for Alaris30/ Objet24/ Objet30 (PRO,PRIME)"]
[null,"STR-OBJ-04016","PACK OF 2 Support Cleaning Fluid",73,null,{"$f":"D10*E10","v":0}]
[null,"STR-OBJ-04018","PACK OF 2 Model Cleaning Fluid",73,null,0]
[null,"STR-OBJ-04020","PACK OF 2 FullCure 705 Support Resin, 1Kg",334,null,0]
[null,"STR-OBJ-04034","PACK OF 2 FullCure 840 VeroBlue model resin, 1Kg \nAvailable only for OBJET 30/PRO/PRIME",630,null,0]
[null,"STR-OBJ-04036","PACK OF 2 FullCure 850 VeroGray model resin, 1Kg \nAvailable only for OBJET 30/PRO/PRIME",761,null,0]
[null,"STR-OBJ-04074","PACK OF 2 RGD430 DurusWhite model resin, 1Kg (replaced OBJ-04041)\nAvailable only for OBJET 30/PRO/PRIME",892,null,0]
[null,"STR-OBJ-04042","PACK OF 2, SUP706 B, SUPPORT, 1KG\n*For OBJET 30- v3 systems only",318,null,0]
[null,"STR-OBJ-04054","PACK OF 2 FullCure 835 VeroWhitePlus model resin, 1Kg ",809,null,0]
[null,"STR-OBJ-04055","PACK OF 2 FullCure 810, VeroClear , 1Kg                                                Available only for OBJET30 PRO/PRIME ONLY",962,null,0]
[null,"STR-OBJ-04056","PACK OF 2 RGD525, 1Kg                                                                     \nAvailable only for OBJET30 PRO/PRIME ONLY",962,null,0]
[null,"STR-OBJ-04057","PACK OF 2 Objet MED610, 1Kg\nAvailable only for OBJET30 PRIME ONLY",1058,null,0]
[null,"STR-OBJ-04063","PACK OF 2 Objet RGD875, VeroBlackPlus, 1Kg\nAvailable only for OBJET 30/PRO/PRIME",821,null,{"$f":"D21*E21","v":0}]
[null,"STR-OBJ-04065","Pack OF 2 Objet MED690, 1KG ",494,null,0]
[null,"STR-OBJ-04066","PACK OF 2 Objet Rigur RGD450, 1Kg \nAvailable only for OBJET30 PRO/PRIME ONLY",856,null,0]
[null,"STR-OBJ-04067","PACK OF 2 Objet VEROGLAZE Med620 1KG",459,null,0]
[null,"STR-OBJ-04076","PACK OF 2 TangoBlack FLX973, 1Kg  (replaced OBJ-04068)                                                 Available only for OBJET30 PRIME ONLY",880,null,0]
[null,"STR-OBJ-04075","PACK OF 2 TangoGray FLX950, 1Kg       (replaced OBJ-04069)                                                      Available only for OBJET30 PRIME ONLY",880,null,0]
[null,"STR-OBJ-04070","PACK OF 2 RGD720, 1Kg                                                                          Available only for OBJET30 PRIME ONLY",761,null,0]
[null,"2.0 Kg Cartridges for EDEN 250, 260, 330, 333"]
[null,"STR-OBJ-02200","PACK OF 1 FullCure 705 Support Resin, 2Kg ",346,null,{"$f":"D29*E29","v":0}]
[null,"STR-OBJ-02204","PACK OF 1 RGD840 VeroBlue, 2Kg ",666,null,0]
[null,"STR-OBJ-02222","PACK OF 1 Support Cleaning Fluid 705, 2Kg ",73,null,0]
[null,"STR-OBJ-02224","PACK OF 1 Model Cleaning Fluid 720, 2Kg ",73,null,0]
[null,"STR-OBJ-02244","PACK OF 1 RGD850 VeroGray model resin, 2Kg ",713,null,0]
[null,"STR-OBJ-02248","PACK OF 1 RGD720 model resin, 2Kg ",596,null,0]
[null,"STR-OBJ-02256","PACK OF 1 RGD835, VeroWhitePlus, 2Kg",761,null,0]
[null,"STR-OBJ-02257","PACK OF 1 RGD810, VeroClear, 2Kg",916,null,0]
[null,"STR-OBJ-02260","PACK OF 1 OBJET MED610, 2Kg",952,null,0]
[null,"STR-OBJ-02262","PACK OF 1 RGD875 VeroBlackPlus, 2Kg ",772,null,0]
[null,"STR-OBJ-02265","PACK OF 1 RGD430 DurusWhite model resin, 2Kg  ",844,null,0]
[null,"3.6 Kg Cartridges for OBJET 260V(S), EDEN 350,500, CONNEX 350,500"]
[null,"STR-OBJ-03713","PACK OF 1 RGD515 PLUS, 3.6Kg    ***compatible with Connex/J750",1640,null,{"$f":"D41*E41","v":0}]
[null,"STR-OBJ-03046","PACK OF 1, SUP706 B Support 3.6Kg",619,null,0]
[null,"STR-OBJ-03200","PACK OF 1 FullCure 705 Support Resin, 3.6Kg",619,null,0]
[null,"STR-OBJ-03204","PACK OF 1 RGD840 VeroBlue, 3.6Kg  ",1189,null,0]
[null,"STR-OBJ-03364","PACK OF 1 FLX950 TangoGray, 3.6Kg",1485,null,0]
[null,"STR-OBJ-03214","PACK OF 1 Model Cleaning Fluid 3.6Kg  ",120,null,0]
[null,"STR-OBJ-03216","PACK OF 1 Support Cleaning Fluid 3.6Kg  ",120,null,0]
[null,"STR-OBJ-03367","PACK OF 1 FLX930 TangoPlus, 3.6Kg",1640,null,0]
[null,"STR-OBJ-03366","PACK OF 1 FLX980 TangoBlackPlus, 3.6Kg",1640,null,0]
[null,"STR-OBJ-03365","PACK OF 1 FLX973 TangoBlack, 3.6Kg",1485,null,0]
[null,"STR-OBJ-03243","PACK OF 1 RGD850 VeroGray,  3.6Kg  ",1284,null,0]
[null,"STR-OBJ-03247","PACK OF 1 RGD720 Translucent model resin, 3.6Kg ",1070,null,0]
[null,"STR-OBJ-03256","PACK OF 1 RGD525, 3.6Kg   ***compatible with EdenV & Connex",1771,null,0]
[null,"STR-OBJ-03258","PACK OF 1 RGD835 VeroWhitePlus, 3.6Kg",1367,null,0]
[null,"STR-OBJ-03271","PACK OF 1 RGD810, VeroClear, 3.6Kg",1640,null,0]
[null,"STR-OBJ-03276","PACK OF 1 Objet MED610, 3.6Kg ",1704,null,0]
[null,"STR-OBJ-03286","PACK OF 1 RGD875 VeroBlackPlus, 3.6Kg",1379,null,0]
[null,"STR-OBJ-03712","PACK OF 1 RGD531 Ivory, 3.6Kg   ***compatible with Connex/J750",1771,null,0]
[null,"STR-OBJ-03308","PACK OF 1 Rigur RGD450, 3.6Kg",1451,null,0]
[null,"STR-OBJ-03362","PACK OF 1 RGD430 DurusWhite, 3.6 Kg (replaced OBJ-03310)",1509,null,0]
[null,"STR-OBJ-03322","PACK OF 1 707 Support Resin, 3.6Kg **Eden 260VS only**                                    ",619,null,0]
[null,"3.6 Kg Vero Color- Compatible only to Connex3/J750"]
[null,"STR-OBJ-03299","PACK OF 1 RGD851 VeroMagenta, 3.6Kg",1451,null,{"$f":"D63*E63","v":0}]
[null,"STR-OBJ-03302","PACK OF 1 RGD836 VeroYellow 3.6Kg",1451,null,{"$f":"D64*E64","v":0}]
[null,"STR-OBJ-03325","PACK OF 1 RGD843 VERO CYAN, 3.6Kg (replaces OBJ-03296)",1451,null,{"$f":"D65*E65","v":0}]
[null,"STR-OBJ-03327","PACK OF 1 RGD837, VERO PUREWHITE, 3.6 Kg ",1425,null,{"$f":"D66*E66","v":0}]
[null,"3.6KG Agilus30- Compatible only to Connex 1/2/3 and J750\nUpgrade required if SUP706 upgrade has not occurred.  Serial Number must be provided."]
[null,"STR-OBJ-03382","PACK OF 1 FLX935, Agilus 30 Clear 3.6Kg",1674,null,{"$f":"D68*E68","v":0}]
[null,"STR-OBJ-03383","PACK OF 1 FLX985, Agilus 30 Black 3.6Kg",1674,null,{"$f":"D69*E69","v":0}]
[null,"3.6KG Vivid Colors- Compatible only to Connex3/J750/J735\nUpgrade required.  Serial Number must be provided."]
[null,"STR-OBJ-03044","PACK OF 1 RGD852, VEROMAGENTAV, 3.6Kg ",1451,null,{"$f":"D71*E71","v":0}]
[null,"STR-OBJ-03045","PACK OF 1 RGD838, VEROYELLOWV, 3.6Kg ",1451,null,0]
[null,"J750"]
[null,"STR-OBJ-03009","PACK OF 1 RGD515, 3.6Kg         ",1640,null,{"$f":"D74*E74","v":0}]
[null,"STR-OBJ-03044","PACK OF 1 RGD852, VEROMAGENTAV, 3.6Kg",1451,null,0]
[null,"STR-OBJ-03045","PACK OF 1 RGD838, VEROYELLOWV, 3.6Kg",1451,null,0]
[null,"STR-OBJ-03046","PACK OF 1, SUP706 B Support 3.6Kg",619,null,0]
[null,"STR-OBJ-03083","PACK OF 1, MED310C, TISSUEMATRIX RESIN, 3.1 KG ",1656,null,0]
[null,"STR-OBJ-03200","PACK OF 1 FullCure 705 Support Resin, 3.6Kg",619,null,0]
[null,"STR-OBJ-03204","PACK OF 1 RGD840 VeroBlue, 3.6Kg  ",1189,null,0]
[null,"STR-OBJ-03214","PACK OF 1 Model Cleaning Fluid 3.6Kg  ",120,null,0]
[null,"STR-OBJ-03216","PACK OF 1 Support Cleaning Fluid 3.6Kg  ",120,null,0]
[null,"STR-OBJ-03367","PACK OF 1 FLX930 TangoPlus, 3.6Kg (Replaced OBJ-03224)",1640,null,0]
[null,"STR-OBJ-03366","PACK OF 1 FLX980 TangoBlackPlus, 3.6Kg (replaced OBJ-03366)",1640,null,0]
[null,"STR-OBJ-03243","PACK OF 1 RGD850 VeroGray,  3.6Kg  ",1284,null,0]
[null,"STR-OBJ-03247","PACK OF 1 RGD720 Translucent model resin, 3.6Kg ",1070,null,0]
[null,"STR-OBJ-03271","PACK OF 1 RGD810, VeroClear, 3.6Kg",1640,null,0]
[null,"STR-OBJ-03286","PACK OF 1 RGD875 VeroBlackPlus, 3.6Kg",1379,null,0]
[null,"STR-OBJ-03712","PACK OF 1 RGD531 Ivory, 3.6Kg  ",1771,null,0]
[null,"STR-OBJ-03299","PACK OF 1 RGD851 VeroMagenta, 3.6Kg",1451,null,{"$f":"D90*E90","v":0}]
[null,"STR-OBJ-03302","PACK OF 1 RGD836 VeroYellow 3.6Kg",1451,null,{"$f":"D91*E91","v":0}]
[null,"STR-OBJ-03325","PACK OF 1 RGD843 VERO CYAN, 3.6Kg (replaces OBJ-03296)",1451,null,0]
[null,"STR-OBJ-03327","PACK OF 1 RGD837, VERO PUREWHITE, 3.6 Kg ",1425,null,0]
[null,"STR-OBJ-03341","PACK OF 1 RGD891 VeroFlex Cyan 3.6kg",1888,null,0]
[null,"STR-OBJ-03342","PACK OF 1 RGD892 VeroFlex Magenta 3.6kg",1888,null,0]
[null,"STR-OBJ-03343","PACK OF 1 RGD893 VeroFlex Yellow 3.6kg",1888,null,0]
[null,"STR-OBJ-03344","PACK OF 1 RGD894 VeroFlex White 3.6kg",1888,null,0]
[null,"STR-OBJ-03345","PACK OF 1 RGD895 VeroFlex Black 3.6kg",1805,null,0]
[null,"STR-OBJ-03346","PACK OF 1 RGD896 VeroFlex Clear 3.6kg",2138,null,0]
[null,"STR-OBJ-03354","PACK OF 1, RGD845 VEROCYANV, 3.6KG",1451,null,0]
[null,"STR-OBJ-03369","PACK OF 1 RGD898, VEROFLEXVIVID CYAN, 3.6 KG",1888,null,0]
[null,"STR-OBJ-03726","PACK OF 1, FLX945 Agilus30 White, 3.6KG NEW",1758,null,0]
[null,"Service Consumables/Spare Parts"]
[null,"STR-ASY-03735-S","Wiper Leaf Assembly",288,null,{"$f":"(D104*E104)","v":0}]
[null,"STR-KIT-00012-S","Material Filter Kit",103,null,0]
[null,"STR-KIT-02050-S","Pack of 3 Waste Containers for Connex260, Eden 250,260, 260V, Objet 260 Connex 1/2/3",85,null,0]
[null,"STR-KIT-03050-S","Pack of 3 Waste Containers for Connex 350/500, Eden 350/350V, Eden 500V, Objet 350 Connex 1/2/3, Objet 500 Connex 1/2/3 and J750",295,null,0]
[null,"STR-KIT-04110-S","Pack of 3 Desktop Waste Containers Alaris 30, Objet 24 V2/V3, Objet 30 V2/V3",56,null,0]
[null,"STR-KIT-37016-S","KIt, Parts for Roller Bath Assy (replaced item# KIT-01033-S)",872,null,0]
[null,"STR-KIT-37017-S","Kit, Blades + Screw for Roller Bath Assy (replaced item# KIT-01026-S)",40,null,0]
[null,"STR-MSC-00014-S ","Wiping Cloths 9\"x9\" 150 per pack",33,null,0]
[]
[]
[]
[]
[null,"Additional Items"]
[null,null,null,null,null,{"$f":"(D117*E117)","v":0}]
[null,null,null,null,null,0]
[null,null,null,null,null,0]
[null,null,null,null,null,0]
[null,null,null,null,null,0]
[null,null,null,null,null,0]
[null,null,null,null,null,0]
[null,null,null,null,null,0]
[null,null,null,null,null,0]
[null,null,null,null,null,0]
[]
[null,null,null,null,"Total:",{"$f":"SUM(F117:F126,F104:F115,F74:F95,F68:F69,F71, F72,F63:F66,F41:F61,F29:F39,F10:F27, F96:F102)","v":0}]

{"sheet":"J835-J850","index":2,"n_rows":37,"n_cols":6,"rows_kept":37,"cut":false,"hidden":false,"merged":[[0,1,1,5],[4,1,4,5],[5,1,5,5],[2,1,2,5],[38,3,39,5],[38,1,39,2],[36,5,37,5],[36,1,37,2],[36,4,37,4],[32,1,32,5],[26,1,26,5]]}
[]
[]
[null,"Stratasys J835|Stratasys J850|Stratasys J826"]
[null,"Part Number","Description","$/Unit","QTY Ordered","Sub Total"]
[null,"Stratasys J835|Stratasys J850|Stratasys J826"]
[null,"Material"]
[null,"STR-OBJ-18001 ","PACK OF 1 RGD843, VERO CYAN, 4 KG",1497,null,{"$f":"D7*E7","v":0}]
[null,"STR-OBJ-18002 ","PACK OF 1  RGD535, DIGITALABSPLUS COMPONENT, 4 KG",1497,null,0]
[null,"STR-OBJ-18003 ","PACK OF 1 RGD810 , VERO CLEAR, 4KG",1497,null,0]
[null,"STR-OBJ-18004 ","PACK OF 1 RGD875, VEROBLACKPLUS,  4 KG",1497,null,0]
[null,"STR-OBJ-18005 ","PACK OF 1 RGD531, DIGITALABSPLUS COMPONENT, 4 KG",1497,null,0]
[null,"STR-OBJ-18006 ","PACK OF 1 RGD851, VEROMAGENTA, 4 KG",1497,null,0]
[null,"STR-OBJ-18007 ","PACK OF 1 RGD836, VEROYELLOW, 4 KG",1497,null,0]
[null,"STR-OBJ-18008 ","PACK OF 1 RGD837, VERO PURE WHITE, 4 KG",1497,null,0]
[null,"STR-OBJ-18011 ","PACK OF 1 RGD515 PLUS, DIGITALABSPLUS COMPONENT, 4 KG",1497,null,0]
[null,"STR-OBJ-18012","PACK OF 1 RGD750, DRAFTGREY, 4 KG",647,null,{"$f":"D16*E16","v":0}]
[null,"STR-OBJ-18018 ","PACK OF 1 RGD820 , VEROULTRACLEAR COMPONENT, 4 KG",1497,null,{"$f":"D17*E17","v":0}]
[null,"STR-OBJ-18019","PACK OF 1 FLX945, AGILUS30 WHITE, 4 KG",1497,null,0]
[null,"STR-OBJ-18020 ","PACK OF 1 RGD845, VEROCYANV, 4 KG",1497,null,0]
[null,"STR-OBJ-18021 ","PACK OF 1 RGD852, VEROMAGENTAV, 4 KG",1497,null,0]
[null,"STR-OBJ-18022 ","PACK OF 1 RGD838, VEROYELLOWV, 4 KG",1497,null,0]
[null,"STR-OBJ-18034","PACK OF 1 FLX935, AGILUS30, 4 KG",1497,null,0]
[null,"STR-OBJ-18035","PACK OF 1 FLX985, AGILUS30  BLACK, 4 KG",1497,null,0]
[null,"STR-OBJ-18036","PACK OF 1 RGD825, VEROULTRAWHITE, 4 KG",1497,null,0]
[null,"STR-OBJ-18037 ","PACK OF 1 RGD865, VEROULTRABLACK, 4 KG",1497,null,0]
[null,"STR-OBJ-18039","PACK OF 1 FLX945, AGILUS30 WHITE, 4 KG NEW",1497,null,0]
[null,"Support Material"]
[null,"STR-OBJ-18015 ","PACK OF 1 SUP705, SUPPORT, 4 KG",522,null,{"$f":"D28*E28","v":0}]
[null,"STR-OBJ-18016 ","PACK OF 1 SUP706 B, SUPPORT , 4 KG",522,null,{"$f":"D29*E29","v":0}]
[null,null,null,null,null,{"$f":"D30*E30","v":0}]
[null,null,null,null,null,{"$f":"D31*E31","v":0}]
[null,null,null,null,null,{"$f":"D32*E32","v":0}]
[null,"Additional Items (add if not listed above)"]
[null,"STR-OBJ-18017","PACK OF 1 CLEANSER, 4 KG",126,null,{"$f":"D34*E34","v":0}]
[null,null,null,0,null,{"$f":"D35*E35","v":0}]
[]
[null,null,null,null,"Total:",{"$f":"SUM(F7:F26,F28:F32,F34:F35)","v":0}]

{"sheet":"J55, J35Pro, J5","index":3,"n_rows":35,"n_cols":7,"rows_kept":35,"cut":false,"hidden":false,"merged":[[30,1,30,5],[24,1,24,5],[4,1,4,5],[0,1,1,5],[2,1,2,5],[5,1,5,5],[36,1,37,2],[36,3,37,5],[34,1,35,2],[34,4,35,4],[34,5,35,5]]}
[null,null,null,null,null,null,"        "]
[]
[null,"Stratasys J55 3D Printer"]
[null,"Part Number","Description","$/Unit","QTY Ordered","Sub Total"]
[null,"Stratasys J55"]
[null,"Material"]
[null,"STR-OBJ-09104 ","PACK OF 1 RGD810, VEROCLEAR, 1.1KG",500,null,{"$f":"D7*E7","v":0}]
[null,"STR-OBJ-09106 ","PACK OF 1 RGD750, DRAFTGREY, 1.1KG",217,null,0]
[null,"STR-OBJ-09110 ","PACK OF 1 RGD875, VEROBLACKPLUS, 1.1 KG",500,null,0]
[null,"STR-OBJ-09119 ","PACK OF 1 RGD837, VEROPUREWHITE, 1.1KG",500,null,0]
[null,"STR-OBJ-09120","PACK OF 1 CLEANSER, CLEANING FLUID, 1.1KG",47,null,0]
[null,"STR-OBJ-09127 ","PACK OF 1 RGD838, VEROYELLOWV, 1.1 KG",500,null,0]
[null,"STR-OBJ-09128 ","PACK OF 1 RGD845, VEROCYANV, 1.1 KG",500,null,0]
[null,"STR-OBJ-09129 ","PACK OF 1 RGD852, VEROMAGENTAV, 1.1 KG",500,null,0]
[null,"STR-OBJ-09131","PACK OF 1 RGD821, VEROULTRACLEARS, 1.1KG",500,null,0]
[null,"STR-OBJ-09132","PACK OF 1 RGD864, VEROULTRABLACKS,  1.1 KG",500,null,0]
[null,"STR-OBJ-09133","PACK OF 1 RGD824, VEROULTRAWHITES, 1.1KG",500,null,0]
[null,"STR-OBJ-09157","PACK OF 1 FLX984 ELASTICOBLACK, 1.1KG",500,null,{"$f":"D18*E18","v":0}]
[null,"STR-OBJ-09158","PACK OF 1 FLX984 ELASTICOCLEAR, 1.1KG",500,null,{"$f":"D19*E19","v":0}]
[null,"STR-OBJ-09003","PACK OF 1 VERO CONTACT CLEAR CTT610 1.1KG",551,null,{"$f":"D20*E20","v":0}]
[null,"STR-OBJ-09161","PACK OF 1 RGD531 DIGITALABS PLUS ",500,null,0]
[null,"STR-OBJ-09161","PACK OF 1 RGD515 DIGITALABS PLUS ",500,null,{"$f":"D22*E22","v":0}]
[]
[null,null,null,null,null,{"$f":"D24*E24","v":0}]
[null,"Support Material"]
[null,"STR-OBJ-09178","PACK OF 1 SUP710, SUPPORT , 1.1 KG (replaced OBJ-09125)",160,null,{"$f":"D26*E26","v":0}]
[null,"STR-OBJ-09103","WATER SOLUBLE SUPPORT 1.1KG",160,null,{"$f":"D27*E27","v":0}]
[null,"STR-OBJ-09152","PACK OF 10 LS2 0.5KG",342,null,{"$f":"D28*E28","v":0}]
[null,null,null,null,null,{"$f":"D29*E29","v":0}]
[null,null,null,null,null,{"$f":"D30*E30","v":0}]
[null,"Additional Items (add if not listed above)"]
[null,null,null,0,null,{"$f":"D32*E32","v":0}]
[null,null,null,0,null,{"$f":"D33*E33","v":0}]
[]
[null,null,null,null,"Total:",{"$f":"SUM(F7:F24,F26:F30,F32:F33)","v":0}]

{"sheet":"FortusPlus","index":4,"n_rows":129,"n_cols":6,"rows_kept":129,"cut":false,"hidden":false,"merged":[[0,1,0,5],[3,1,3,5],[44,1,44,5],[129,3,130,5],[129,1,130,2],[111,1,111,5],[1,1,1,5],[10,1,10,5],[59,1,59,5],[71,1,71,5],[127,5,128,5],[127,1,128,2],[74,1,74,5],[85,1,85,5],[64,1,64,5],[97,1,97,5],[123,1,123,5],[127,4,128,4]]}
[]
[null,"FORTUS PLUS - 380MC/450MC, upgraded 360mc/400mc/900mc and all Fortus 900mc ≥ L0502"]
[null,"Part Number","Description","$/Unit","QTY Ordered","Sub Total"]
[null,"Support Removal and Supplies"]
[null,"STR-300-00600","WaterWorks Soluble Concentrate P400-SC case of 12 (950 gms)\n***Can only ship Ground or Overnight",191,null,{"$f":"D5*E5","v":0}]
[null,"STR-310-05000","Envelope Bulb 380/450mc (Qty 2)",55,null,0]
[null,"STR-511-00200","Tip Brush and Wiper Assy (qty 4)",528,null,0]
[null,"STR-511-00300","Tip Wipe Flicker, Metal or Metal w/ silicone (aty 8)",103,null,0]
[null,"STR-511-00700","Purge Ledge 380/450mc",217,null,0]
[null,"STR-511-00701","Ultem 1010 Purge Ledge, Fortus 450mc",288,null,0]
[null,"Modeling Material  92ci3 (1510 cc)"]
[null,"STR-355-02110","Standard ABS-M30 (Natural) Filament Canister",454,null,{"$f":"D12*E12","v":0}]
[null,"STR-355-02111","Standard ABS-M30 (White) Filament Canister",454,null,0]
[null,"STR-355-02112","Standard ABS-M30 (Black) Filament Canister",454,null,0]
[null,"STR-355-02113","Standard ABS-M30 (Gray) Filament Caniste",454,null,0]
[null,"STR-355-02114","Standard ABS-M30 (Red) Filament Canister",454,null,0]
[null,"STR-355-02115","Standard ABS-M30 (Blue) Filament Canister",454,null,0]
[null,"STR-355-02119","MTRL, FORTUS 450MC, (M), ABS30 CUS",454,null,0]
[null,"STR-355-02120","Standard ABS-M30i (Natural) Filament Canister",454,null,0]
[null,"STR-355-02130","Standard ABS-ESD7 (Black) Filament Canister",522,null,0]
[null,"STR-355-02140","ASA (Natural) Filament Canister",454,null,0]
[null,"STR-355-02141","ASA (White) Filament Canister",454,null,0]
[null,"STR-355-02142","ASA (Black) Filament Canister",454,null,0]
[null,"STR-355-02143","ASA (Dark Gray) Filament Canister",454,null,0]
[null,"STR-355-02144","ASA (Red) Filament Canister",454,null,0]
[null,"STR-355-02145","ASA (Dark Blue) Filament Canister",454,null,0]
[null,"STR-355-02146","ASA (Light Gray) Filament Canister",454,null,0]
[null,"STR-355-02147","ASA (Green) Filament Canister",454,null,0]
[null,"STR-355-02148","ASA (Orange) Filament Canister",454,null,0]
[null,"STR-355-02149","ASA (Yellow) Filament Canister",454,null,0]
[null,"STR-355-02210","Engineering PC (White) Filament Canister",522,null,0]
[null,"STR-355-02220","Engineering PC-ISO (White) Filament Canister",522,null,0]
[null,"STR-355-02221","Engineering PC-ISO (Translucent) Filament Canister",522,null,0]
[null,"STR-355-02230","Engineering Nylon 12 (Black) Filament Canister",522,null,0]
[null,"STR-355-02250","Nylon 6 (Black) Filament Canister, Fortus Plus, 92 in^3 (1510 cc)",557,null,0]
[null,"STR-355-02260","PC-ABS (Black) Filament Canister, Fortus Plus",522,null,0]
[null,"STR-355-02310","Ultem 9085 (Natural) Filament Canister",887,null,0]
[null,"STR-355-02311","Ultem 9085 (Black) Filament Canister",887,null,0]
[null,"STR-355-02320","Ultem1010 CG (Natural) Filament Canister (CG) comes with NSF 51, ISO 10993, USP Class VI certifications",1021,null,0]
[null,"STR-355-02330","Ultem1010 (Natural) Filament Canister",887,null,0]
[null,"STR-355-02340","PPSF Filament Canister, Fortus Plus (only for 400 and 900mc Plus, not 450mc)",887,null,0]
[null,"STR-355-02411","Nylon 12 CF (Black) Filament Canister, Fortus Plus, 92 in^3 (1510cc)",774,null,0]
[null,"STR-355-03150","ST130 Filament Canister, Fortus Plus, 92 in^3 (1510 cc)",592,null,0]
[null,"STR-355-23101","Ultem 9085 (Natural) Filament Canister AEROSPACE",1110,null,0]
[null,"Modeling Material - Validated- Fortus 450mc"]
[null,"STR-355-70000","Validated MTRL, FORTUS PLUS, (M), HIPS, 92CI",378,null,{"$f":"D46*E46","v":0}]
[null,"STR-355-70010","Validated MTRL, FORTUS PLUS (M), PC-FR, 92CI",596,null,0]
[null,"STR-355-70050","VALIDATED MTRL, FORTUS PLUS (M), ULTEM RESIN 9085 RED, 92CI",845,null,{"$f":"D48*E48","v":0}]
[null,"STR-355-70051","VALIDATED MTRL, FORTUS PLUS (M), ULTEM RESIN 9085 JANA WHT, 92CI",845,null,0]
[null,"STR-355-70052","VALIDATED MTRL, FORTUS PLUS (M), ULTEM RESIN 9085 DREAM GRY, 92CI​ ",845,null,0]
[null,"STR-355-70053","VALIDATED MTRL, FORTUS PLUS (M), ULTEM RESIN 9085 WHT 7362, 92CI",845,null,0]
[null,"STR-355-70054","VALIDATED MTRL, FORTUS PLUS (M), ULTEM RESIN 9085 GUNSHIP GRY, 92CI​ ",845,null,0]
[null,"STR-355-70055","VALIDATED MTRL, FORTUS PLUS (M), ULTEM 9085 RESIN AIRCRAFT GRY, 92CI​",845,null,0]
[null,"STR-355-70060","MTRL, FORTUS PLUS (M), PC RED, 92CI",498,null,0]
[null,"STR-355-70061","VALIDATED MTRL, FORTUS PLUS (M), PC BLK, 92CI",498,null,0]
[null,"STR-355-70070","VALIDATED MTRL, FORTUS PLUS (M), PC-ABS RED, 92CI",498,null,0]
[null,"STR-355-70080","VALIDATED MTRL, FORTUS PLUS, (S), SUP1500B, 92CI​",498,null,0]
[null,"STR-355-70090","VALIDATED MTRL, FORTUS PLUS, (S), SUP4000B, 92CI",498,null,0]
[null,null,null,null,null,0]
[null,"Xtend 184ci3 (3020 cc)"]
[null,"STR-355-08110","ABS-M30 (Natural) Filament Canister",851,null,{"$f":"D61*E61","v":0}]
[null,"STR-355-08112","ABS-M30 (Black) Filament Canister",851,null,{"$f":"D62*E62","v":0}]
[null,"STR-355-08210","PC (White) Filament Canister",987,null,{"$f":"D63*E63","v":0}]
[null,"STR-355-08310","Ultem 9085 (Natural) Filament Canister",1683,null,{"$f":"D64*E64","v":0}]
[null,"Xtend 500ci (8195cc)"]
[null,"STR-360-50110","Xtend 500 ABS-M30 Ivory",2325,null,{"$f":"D66*E66","v":0}]
[null,"STR-360-50210","Xtend 500 PC Filament",2664,null,0]
[null,"STR-360-50211","Xtend 500 ABS-M30 Black",2325,null,0]
[null,"STR-360-50240","Xtend 500 ASA (Natural) Filament",2325,null,0]
[null,"STR-360-53110","Xtend 500 SR-30 support",2313,null,0]
[null,"STR-360-53210","Xtend 500 PC BASS support",2539,null,0]
[null,"Antero Materials for Fortus 450mc and F900"]
[null,"STR-355-02500","Antero 800NA Material, 92ci ",1547,null,{"$f":"D73*E73","v":0}]
[null,"STR-355-03260","SUP8000B Support (Breakaway), 92CI ",516,null,{"$f":"D74*E74","v":0}]
[null,"Support Material 92ci3 (1510 cc)"]
[null,"STR-355-03110","SR30 Soluble Release Support Canister",454,null,{"$f":"D76*E76","v":0}]
[null,"STR-355-03120","SR100 Soluble Release Support Canister",567,null,0]
[null,"STR-355-03130","SR110 Soluble Release Support Canister",567,null,0]
[null,"STR-355-03135","SR35 Soluble Release Support Canister, Fortus Plus, 92 in^3 (1510 cc)",454,null,0]
[null,"STR-355-03140","SR-20 Support Filament Canister, Fortus Plus\n(only for 400/900mc Plus Systems)",477,null,0]
[null,"STR-355-03150","ST130 Soluble Release Support Canister",592,null,0]
[null,"STR-355-03210","PC BASS Support Canister",500,null,0]
[null,"STR-355-03220","Ultem 9085 Support Canister Fortus 450mc",842,null,0]
[null,"STR-355-03240","Ultem 1010 Support Canister Fortus 450mc",842,null,0]
[null,"STR-355-03250","PPSF Support Filament Canister (only for 400/900mc Plus Systems)",842,null,0]
[null,"Foundations/Bases"]
[null,"STR-325-00100","Foundation Sheet (ABS/PC/ASA) Fortus 450mc (small, pack of 20)",155,null,{"$f":"D87*E87","v":0}]
[null,"STR-325-00100","Foundation Sheets - Small (pkg of 20) 900mc (ABS-M30, ASA, PC, PC-ABS)",155,null,0]
[null,"STR-325-00275-S","Foundation Sheet- High Temp Fortus 450/900 (pack of 20)",738,null,0]
[null,"STR-325-00300","Foundation Sheets - Large (pkg of 10) 900mc (ABS-M30, ASA, PC, PC-ABS) *",281,null,0]
[null,"STR-325-00475-S","Foundation Sheets - Large (pkg of 10) 900mc (High Temp )",749,null,0]
[null,"STR-325-00750-S","Foundation Sheet (Nylon12) Fortus 450/900 (small, pack of 20)",662,null,0]
[null,"STR-355-00100","Foundation Sheet (ABS/PC/ASA) Fortus 380mc (pack of 20)",155,null,0]
[null,"STR-355-00750-S","Foundation Sheet (Nylon12) Fortus 380mc (pack of 20) ",662,null,0]
[]
[]
[]
[null,"Tip Sets"]
[null,"STR-511-10101","T12/T12 SR-30 Tip Set for Fortus 400/450mc (ABS-M30, ABS-M30i) - .007\" (.178 mm) Slice - Includes one (1) T12 Tip and one (1) T12-SR-30 Tip",261,null,{"$f":"D99*E99","v":0}]
[null,"STR-511-10201","T16 Tip Set for Fortus 400/450mc (ABS-M30, ABS-M30i, ABS-ESD7) - .010\" (.254 mm) Slice - Includes one (1) T16 Tip and one (1) T12-SR-30 Tip",261,null,0]
[null,"STR-511-10400","T16 Tip Set for Fortus 360/380/400/450/900mc (PC, PC-ISO, ULTEM 9085and PPSF) - .010\" (.254 mm) Slice - Includes two (2) T16 Tips",261,null,0]
[null,"STR-511-10410","TIP, FDM, T16A - Fortus 900mc for use with Ultem 9085",193,null,0]
[null,"STR-511-10600","T12 Tip Set for Fortus 360/380/400/450/900mc (PC and PC-ISO) - .007\" (.178 mm) Slice - Includes two (2) T12 Tips",248,null,0]
[null,"STR-511-10601","T20 SR-30 Tip Set for Fortus 360/380/400/450mc (ABS-M30, ABS-M30i) - .013\" (.330 mm) Slice - Includes one (1) T20 Tip and one (1) T12-SR-30 Tip",263,null,0]
[null,"STR-511-10800","T20 Tip Set for Fortus 360/380/400/450/900mc (PC, PC-ISO, ULTEM 9085,ULTEM 1010 and PPSF) - .013\" (.330 mm) Slice - Includes two (2) T20 Tips and one (1) T16 Support Tip",393,null,0]
[null,"STR-511-10801","T10/T12 SR-30 Tip Set for Fortus 360/380/400/450mc (ABS-M30, ABS-M30i) - .005\" (.127 mm) Slice - Includes one (1) T10 Tip and one (1) T12-SR-30 Tip",249,null,0]
[null,"STR-511-10850","T20B Tip Set for Fortus 450/900mc (ST130) - .013\" (.330 mm) Slice - Includes one (1) T20B Tip and one (1) T20 Support Tip",258,null,0]
[null,"STR-511-11101","T12/T12 SR-100/110 Tip Set for Fortus eV/eT/360/380/400/450mc/900mc (PC/SR-100, NYLON 12/SR-110) - .007\" (.178 mm) Slice - Includes one (1) T12 Tip and one (1) T12-SR-100/110 Tip",249,null,0]
[null,"STR-511-11201","T16/T12 SR-100/110 Tip Set for Fortus eV/eT/360/380/400/450mc/900m (PC/SR-100, NYLON12/SR-110) - .010\" (.254 mm) Slice - Includes one (1) T16 Tip and one (1) T12-SR-100/110 Tip",263,null,0]
[null,"STR-511-11801","T10/T12 SR-100 Tip Set for Fortus eV/eT/360/380/400/450mc (PC, SR-100) - .005\" (.127 mm) Slice - Includes one (1) T10 Tip and one (1) T12-SR-100 Tip",249,null,0]
[null,"STR-511-12001","T14 Tip Set for Fortus 400/900mc (ULTEM 1010) - .010\" (.254 mm) Slice - Includes one (1) T14 Tips and one (1) T16 Support Tip",263,null,0]
[null,"Individual Tips"]
[null,"STR-511-10100","T12 SR-100/SR-110 Support Tip",138,null,{"$f":"D113*E113","v":0}]
[null,"STR-511-10301","T12 Model Tip .007\" (.178 mm) Slice",138,null,0]
[null,"STR-511-10401","T16 Model Tip .010\" (.254 mm) Slice",138,null,0]
[null,"STR-511-10501","T10 Model Tip .005\" (.127 mm) Slice",138,null,0]
[null,"STR-511-10701","T20 Tip (Qty 1) Fortus 360/380/400/450/900mc",138,null,0]
[null,"STR-511-10710","T20B ST130 Tip (Qty 1) Fortus 450mc/900mc",138,null,0]
[null,"STR-511-10720","T20C Nylon 12CF Hardened Tip (Qty 1) Fortus 450",138,null,0]
[null,"STR-511-10730-S","T20D Tip Hardened (Qty 1) Fortus 450",355,null,0]
[null,"STR-511-10750","T40A Tip- Fortus 900mc",355,null,0]
[null,"STR-511-10900","T12 SR-30 Support Tip",138,null,0]
[null,"STR-511-12000","T14 Model Tip .010\" (.254 mm) Slice - Ultem1010",130,null,0]
[null,"Additional Items"]
[null,null,null,0,null,{"$f":"D125*E125","v":0}]
[null,null,null,0,null,{"$f":"D126*E126","v":0}]
[]
[null,null,null,null,"Total:",{"$f":"SUM(F125:F126,F113:F123,F99:F111,F87:F97,F76:F85,F73,F74,F66:F71,F61:F64,F31:F44,F13:F30,F12,F5:F10,F46:F59)","v":0}]
[null,null,null,null,null,{"$f":"SUM(#REF!,#REF!,F7:F61,F63:F70,F75:F78,F81:F104,F106:F123,F125:F127)","v":{"$error":"#REF!"}}]

{"sheet":"FortusClassic","index":5,"n_rows":86,"n_cols":14,"rows_kept":86,"cut":false,"hidden":false,"merged":[[88,1,88,12],[87,8,87,12],[87,1,87,7],[44,3,44,8],[50,1,50,2],[52,1,52,2],[40,1,40,2],[41,1,41,2],[49,3,49,8],[50,3,50,8],[52,3,52,8],[85,11,86,12],[85,1,86,8],[85,10,86,10],[83,11,83,12],[83,1,83,2],[83,3,83,8],[79,11,79,12],[80,11,80,12],[70,1,70,12],[73,3,73,8],[74,11,74,12],[82,1,82,2],[82,3,82,8],[2,1,2,12],[6,3,6,8],[5,1,5,2],[5,3,5,8],[3,1,3,2],[12,3,12,8],[12,1,12,2],[9,11,9,12],[9,1,9,2],[9,3,9,8],[8,1,8,2],[6,1,6,2],[6,11,6,12],[7,3,7,8],[12,11,12,12],[8,3,8,8],[11,1,11,2],[11,3,11,8],[18,7,18,8],[19,7,19,8],[20,7,20,8],[21,7,21,8],[17,1,17,2],[28,7,28,8],[29,7,29,8],[31,7,31,8],[49,11,49,12],[30,7,30,8],[25,1,25,2],[3,11,3,12],[3,3,3,8],[4,1,4,12],[5,11,5,12],[16,1,16,6],[16,7,16,12],[17,7,17,8],[13,1,13,2],[15,1,15,12],[26,1,26,2],[10,11,10,12],[13,11,13,12],[24,1,24,6],[7,11,7,12],[24,7,24,8],[23,7,23,8],[10,1,10,2],[22,7,22,8],[7,1,7,2],[14,1,14,2],[14,3,14,8],[14,11,14,12],[18,1,18,2],[25,7,25,8],[20,1,20,2],[21,1,21,2],[11,11,11,12],[8,11,8,12],[10,3,10,8],[19,1,19,2],[13,3,13,8],[22,1,22,2],[23,1,23,2],[75,11,75,12],[79,3,79,8],[79,1,79,2],[80,1,80,2],[77,3,77,8],[73,11,73,12],[72,3,72,8],[71,3,71,8],[80,3,80,8],[77,11,77,12],[71,1,71,2],[72,1,72,2],[73,1,73,2],[74,1,74,2],[75,1,75,2],[77,1,77,2],[78,11,78,12],[71,11,71,12],[72,11,72,12],[74,3,74,8],[78,3,78,8],[78,1,78,2],[76,1,76,2],[76,3,76,8],[69,1,69,2],[58,1,58,2],[64,7,64,8],[61,1,61,2],[66,1,66,2],[60,7,60,12],[65,7,65,8],[66,7,66,8],[59,1,59,2],[58,7,58,8],[82,11,82,12],[67,1,67,2],[68,1,68,2],[67,7,67,8],[81,1,81,12],[27,1,27,2],[29,1,29,2],[28,1,28,2],[30,1,30,6],[49,1,49,2],[62,7,62,8],[63,7,63,8],[53,1,53,12],[47,3,47,8],[47,1,47,2],[34,1,34,2],[35,1,35,2],[36,1,36,12],[50,11,50,12],[52,11,52,12],[46,11,46,12],[38,1,38,2],[44,1,44,2],[44,11,44,12],[51,3,51,8],[51,11,51,12],[47,11,47,12],[48,11,48,12],[76,11,76,12],[32,7,32,8],[34,7,34,12],[37,1,37,2],[39,1,39,12],[48,1,48,2],[45,11,45,12],[48,3,48,8],[55,1,55,6],[54,1,54,12],[55,7,55,12],[56,1,56,2],[40,7,40,8],[56,7,56,8],[62,1,62,2],[63,1,63,2],[65,1,65,2],[69,7,69,8],[60,1,60,6],[64,1,64,6],[0,1,1,12],[68,7,68,8],[61,7,61,8],[42,1,42,2],[33,1,33,2],[46,3,46,8],[26,7,26,8],[43,1,43,12],[46,1,46,2],[31,1,31,2],[32,1,32,2],[45,1,45,2],[45,3,45,8],[41,7,41,8],[42,7,42,12],[33,7,33,8],[27,7,27,12],[37,7,37,8],[38,7,38,8],[35,7,35,12],[57,1,57,2],[57,7,57,8],[59,7,59,8],[51,1,51,2]]}
[null,null,null,null,null,null,null,null,null,null,null,null,null,"        "]
[]
[null,"FORTUS CLASSIC 360/400/900/Titan"]
[null,"Part Number",null,"Description",null,null,null,null,null,"$/Unit","QTY Ordered","Sub Total"]
[null,"Support Removal and Supplies"]
[null,"STR-300-00600",null,"WaterWorks Soluble Concentrate P400-SC case of 12 (950 gms)\n***Can only ship Ground or Overnight",null,null,null,null,null,191,null,{"$f":"J6*K6","v":0}]
[null,"STR-300-01100",null,"ABS Glue, 2 oz. Bottle (12pk)",null,null,null,null,null,24,null,0]
[null,"STR-310-02000",null,"Envelope Bulb, Fortus 360/400/900/Titan (pkg of 4)",null,null,null,null,null,50,null,0]
[null,"STR-510-00100",null,"Platen O-Ring, Fortus 360/400/Titan",null,null,null,null,null,66,null,0]
[null,"STR-510-00400",null,"PPSF Support Removal Kit",null,null,null,null,null,754,null,0]
[null,"STR-511-00200",null,"Tip Brush and Wiper Assy (qty 4)",null,null,null,null,null,528,null,0]
[null,"STR-511-00300",null,"Tip Wipe Flicker, Metal or Metal w/ silicone (aty 8)",null,null,null,null,null,103,null,0]
[null,"STR-511-00500",null,"Kapton Catcher, Fortus 360/400/900 (qty 4)",null,null,null,null,null,47,null,0]
[null,"STR-511-00600",null,"TeflonPurge Ledge, Fortus 360/400/900 (qty 2)",null,null,null,null,null,299,null,0]
[null,"STR-511-00601",null,"PPSF TeflonPurge Ledge, Fortus 360/400/900 (qty 2)",null,null,null,null,null,240,null,0]
[null,"Modeling Material  92ci3 (1510 cc)"]
[null,"ABS-M30",null,null,null,null,null,"ASA"]
[null,"STR-311-20000",null,"ABS-M30 Natural",454,null,{"$f":"E18*F18","v":0},"STR-311-21000",null,"ASA Natural",454,null,{"$f":"K18*L18","v":0}]
[null,"STR-311-20100",null,"ABS-M30 White",454,null,0,"STR-311-21200",null,"ASA Black",454,null,0]
[null,"STR-311-20200",null,"ABS-M30 Black",454,null,0,"STR-311-21500",null,"ASA Dark Blue",454,null,0]
[null,"STR-311-20300",null,"ABS-M30 Gray",454,null,0,"STR-311-21600",null,"ASA Dark Gray",454,null,0]
[null,"STR-311-20400",null,"ABS-M30 Red",454,null,0,"STR-311-21300",null,"ASA Lite Gray",454,null,0]
[null,"STR-311-20500",null,"ABS-M30 Blue",454,null,0,"STR-311-21390",null,"ASA Red",454,null,0]
[null,null,null,null,null,null,null,"STR-311-21700",null,"ASA Green",454,null,0]
[null,"ABSi/ABS-M30i/ABS-ESD7",null,null,null,null,null,"STR-311-21800",null,"ASA Orange",454,null,0]
[null,"STR-310-21400",null,"ABSi Translucent ",454,null,{"$f":"E26*F26","v":0},"STR-311-21900",null,"ASA Yellow",454,null,0]
[null,"STR-310-21500",null,"ABSi Translucent Amber",454,null,{"$f":"E27*F27","v":0},"STR-311-21100",null,"ASA White",454,null,0]
[null,"STR-310-21600",null,"ABSi Translucent Red",454,null,{"$f":"E28*F28","v":0},"High Performance PPSF/Ultem"]
[null,"STR-311-21400",null,"ABS-M30i ",454,null,{"$f":"E29*F29","v":0},"STR-310-20200",null,"PPSF ",939,null,{"$f":"K29*L29","v":0}]
[null,"STR-311-20800",null,"ABS-ESD7",454,null,{"$f":"E30*F30","v":0},"STR-312-20000",null,"Ultem9085 Natural",887,null,0]
[null,"Engineering PC/PC-ISO/PC-ABS/Nylon12",null,null,null,null,null,"STR-312-20001",null,"Ultem9085 Natural- AEROSPACE",1110,null,0]
[null,"STR-310-20100",null,"PC ",522,null,{"$f":"E32*F32","v":0},"STR-312-20200",null,"Ultem9085 Black",887,null,0]
[null,"STR-310-20300",null,"PC-ISO White",522,null,{"$f":"E33*F33","v":0},"STR-312-22100",null,"Ultem1010 Ntrl",887,null,0]
[null,"STR-310-20400",null,"PC-ISO Translucent",522,null,{"$f":"E34*F34","v":0},"STR-312-22000",null,"Ultem1010 Ntrl (CG)*",1021,null,0]
[null,"STR-310-20500",null,"PC-ABS",522,null,{"$f":"E35*F35","v":0},"*(CG) comes with NSF 51, ISO 10993, USP Class VI certifications "]
[null,"STR-310-21800",null,"Nylon12",522,null,{"$f":"E36*F36","v":0}]
[null,"Xtend Model Material 184 ci3 (3020cc)"]
[null,"STR-310-20118",null,"Xtend PC Filament White",987,null,{"$f":"E38*F38","v":0},"STR-311-20018",null,"Xtend ABS-M30 Natural",851,null,{"$f":"K38*L38","v":0}]
[null,"STR-312-20018",null,"Xtend Ultem9085",1683,null,{"$f":"E39*F39","v":0},"STR-311-20218",null,"Xtend ABS-M30 Black",851,null,{"$f":"K39*L39","v":0}]
[null,"Xtend Material 500 ci3 (8195cc)"]
[null,"STR-360-50210",null,"Xtend 500 PC Filament",2664,null,{"$f":"E41*F41","v":0},"STR-360-53210",null,"Xtend 500 PC BASS support",2539,null,{"$f":"K41*L41","v":0}]
[null,"STR-360-50110",null,"Xtend 500 ABS-M30 Ivory",2325,null,{"$f":"E42*F42","v":0},"STR-360-53110",null,"Xtend 500 SR-30 support",2313,null,{"$f":"K42*L42","v":0}]
[null,"STR-360-50211",null,"Xtend 500 ABS-M30 Black",2325,null,{"$f":"E43*F43","v":0},"*Xtend 500 compatible with 900mc only with upgrade"]
[null,"Support Material 92ci3 (1510 cc)"]
[null,"STR-310-30100",null,"PC BASS Support (PC, PC-ISO)",null,null,null,null,null,500,null,{"$f":"J45*K45","v":0}]
[null,"STR-310-30300",null,"PPSF BASS Support",null,null,null,null,null,892,null,0]
[null,"STR-310-30500",null,"SR-20 Soluble Support (ABS-M30, ABS-M30i, PC-ABS)",null,null,null,null,null,477,null,0]
[null,"STR-311-30200",null,"SR-30 Soluble Support (ABS-M30, ABS-M30i, ASA, ABS-ESD7)",null,null,null,null,null,454,null,{"$f":"J48*K48","v":0}]
[null,"STR-310-31100",null,"SR-100 Soluble Support (PC)",null,null,null,null,null,567,null,0]
[null,"STR-310-32200",null,"SR-110 Soluble Support (PC, Nylon)",null,null,null,null,null,567,null,0]
[null,"STR-310-30600",null,"Ultem9085 Support",null,null,null,null,null,842,null,0]
[null,"STR-310-31000",null,"Ultem1010 Support",null,null,null,null,null,842,null,{"$f":"J52*K52","v":0}]
[null,"STR-311-30235",null,"SR-35 Soluble Release Support Canister, Fortus Classic,92 in^3 (1510 cc) - Fortus Classic (ABS-M30, ABS-M30i, ASA, and ABS-ESD7)",null,null,null,null,null,454,null,0]
[null,"Tips and Tip Sets"]
[null,"T10 = .005\" (.127mm) | T12 = .007\" (.178mm) | T14 = .010\" (.254mm) | T16 = .010\" (.254mm) | T20 = .013\" (.330mm)"]
[null,"SR-20 Tip Sets (1 model/1 support)",null,null,null,null,null,"SR-30 Tip Sets (1 model/1 support)"]
[null,"STR-511-10500",null,"T10/T12 (ABS-M30/M30i,PC-ABS)",248,null,{"$f":"E57*F57","v":0},"STR-511-10801",null,"T10/T12 (ABS-M30/M30i/ASA)",261,null,{"$f":"K57*L57","v":0}]
[null,"STR-511-10300",null,"T12/T12 (ABS-M30/M30i,ABS-ESD7,PC-ABS)",248,null,{"$f":"E58*F58","v":0},"STR-511-10101",null,"T12/T12 (ABS-M30/M30i/ASA)",261,null,{"$f":"K58*L58","v":0}]
[null,"STR-511-10000",null,"T16/T12 (ABS-M30/M30i,PC-ABS)",248,null,{"$f":"E59*F59","v":0},"STR-511-10201",null,"T16/T12 (ABS-M30/M30i, ABS-ESD7/ASA)",261,null,{"$f":"K59*L59","v":0}]
[null,"STR-511-10700",null,"T20/T12 (ABS-M30/M30i,PC-ABS)",248,null,{"$f":"E60*F60","v":0},"STR-511-10601",null,"T20/T12 (ABS-M30/ABS-M30i)",263,null,{"$f":"K60*L60","v":0}]
[null,"SR-100/110 Tip Sets (1 model/1 support)",null,null,null,null,null,"Individual Tips"]
[null,"STR-511-11801",null,"T10/T12 SR-100 (PC)",249,null,{"$f":"E62*F62","v":0},"STR-511-10501",null,"T10 Model Tip",138,null,{"$f":"K62*L62","v":0}]
[null,"STR-511-11101",null,"T12/T12 SR-100/110 (PC/SR100, Nylon/SR110)",249,null,{"$f":"E63*F63","v":0},"STR-511-10301",null,"T12 Model Tip",138,null,0]
[null,"STR-511-11201",null,"T16/T12 SR-100/110 (PC/SR100, Nylon/SR110)",263,null,{"$f":"E64*F64","v":0},"STR-511-12000 ",null,"T14 Model Tip (Ultem1010)",130,null,0]
[null,"Breakaway Support Tip Sets",null,null,null,null,null,"STR-511-10401",null,"T16 Model Tip",138,null,0]
[null,"STR-511-10600",null,"T12 Tip Set for Fortus 360/380/400/450/900mc (PC and PC-ISO) - .007\" (.178 mm) Slice - Includes two (2) T12 Tips",248,null,{"$f":"E66*F66","v":0},"STR-511-10701",null,"T20 Model Tip",138,null,0]
[null,"STR-511-12001",null,"T14 Tip Set for Fortus 400/900mc (ULTEM 1010) - .010\" (.254 mm) Slice - Includes one (1) T14 Tips and one (1) T16 Support Tip",263,null,{"$f":"E67*F67","v":0},"STR-511-10901",null,"T12 SR20 Support tip",138,null,0]
[null,"STR-511-10400",null,"T16 Tip Set for Fortus 360/380/400/450/900mc (PC, PC-ISO, ULTEM 9085and PPSF) - .010\" (.254 mm) Slice - Includes two (2) T16 Tips",261,null,{"$f":"E68*F68","v":0},"STR-511-10900",null,"T12 SR30 Support tip",138,null,0]
[null,"STR-511-10800",null,"T20 Tip Set for Fortus 360/380/400/450/900mc (PC, PC-ISO, ULTEM 9085,ULTEM 1010 and PPSF) - .013\" (.330 mm) Slice - Includes two (2) T20 Tips and one (1) T16 Support Tip",393,null,{"$f":"E69*F69","v":0},"STR-511-10100",null,"T12 SR100/110 Support Tip",138,null,{"$f":"K69*L69","v":0}]
[null,null,null,null,null,null,null,"STR-511-10750",null,"T40 Tip- Fortus 900mc",355,null,0]
[null,"Foundations"]
[null,"STR-310-00100",null,"Foundation Sheets (pkg of 20) 360/400mc (ABS-M30, PC-ABS, PC, ABS-ESD7,ASA)",null,null,null,null,null,155,null,{"$f":"J72*K72","v":0}]
[null,"STR-310-00300",null,"Foundation Sheets (pkg of 20) 400mc (PPSF, ULTEM 9085/1010)",null,null,null,null,null,738,null,{"$f":"J73*K73","v":0}]
[null,"STR-310-00450-S",null,"Foundation Sheets - Nylon (pkg of 20) 360/400mc",null,null,null,null,null,662,null,0]
[null,"STR-325-00100",null,"Foundation Sheets - Small (pkg of 20) 900mc (ABS-M30, ASA, PC, PC-ABS)",null,null,null,null,null,155,null,0]
[]
[null,"STR-325-00275-S",null,"Foundation Sheets - High Temp Fortus 900mc (pkg of 20)",null,null,null,null,null,738,null,{"$f":"J77*K77","v":0}]
[null,"STR-325-00300",null,"Foundation Sheets - Large (pkg of 10) 900mc (ABS-M30, ASA, PC, PC-ABS)",null,null,null,null,null,281,null,0]
[]
[null,"STR-325-00650-S",null,"Foundation Sheets - Nylon Large (pkg of 10) 900mc",null,null,null,null,null,453,null,0]
[]
[null,"Additional Items"]
[null,null,null,null,null,null,null,null,null,0,null,{"$f":"J83*K83","v":0}]
[null,null,null,null,null,null,null,null,null,0,null,{"$f":"J84*K84","v":0}]
[]
[null,null,null,null,null,null,null,null,null,null,"Total:",{"$f":"SUM(L83:M85,L72:M81,G66:G69,M62:M70,G62:G64,G57:G60,M57:M60,L45:M53,M41:M42,M38:M39,G38:G39,G41:G43,G32:G36,M29:M34,G26:G30,G18:G24,M18:M27,L6:M15)","v":0}]

{"sheet":"F123 Series","index":6,"n_rows":92,"n_cols":6,"rows_kept":92,"cut":false,"hidden":false,"merged":[[18,1,18,5],[21,1,21,5],[2,1,2,5],[4,1,4,5],[0,1,1,5],[5,1,5,2],[10,1,10,2],[79,1,79,5],[86,1,86,5],[83,1,83,5],[92,1,93,2],[92,3,93,5],[90,1,91,2],[90,4,91,4],[90,5,91,5]]}
[]
[]
[null,"F123 Series"]
[null,"Part Number","Description","$/Unit","QTY Ordered","Sub Total"]
[null,"Accessories"]
[null,"Extrusion Heads:"]
[null,"STR-123-00307-S","Extrusion Head (for all F123 Series printers for PLA model material)",1254,null,{"$f":"D7*E7","v":0}]
[null,"STR-123-00402-S","Extrusion Head (for all F123 Series printers for model and support material, excluding PLA, CF10)",1258,null,{"$f":"D8*E8","v":0}]
[null,"STR-123-00601-S","Extrusion Head (ABS-CF10 model material) (NEW) ",1254,null,{"$f":"D9*E9","v":0}]
[null,"STR-123-00602-S","F123 SERIES CR EXTRUSION HEAD  (F370 CR / F190 CR ONLY) (NEW) ",2365,null,{"$f":"D10*E10","v":0}]
[null,"Accessories:"]
[null,"STR-123-00302-S","F120/F170 Standard Modeling Bases - Pack of 16",194,null,{"$f":"D12*E12","v":0}]
[null,"STR-123-00303-S","F190CR/F270 Standard Modeling Bases - Pack of 16",194,null,0]
[null,"STR-123-00304","F370 Standard Modeling Bases - Pack of 16",193,null,0]
[null,"STR-123-50102-S","F770 Build Sheets, 0.015\" THICK Box of 20 (replaced 123-50100-S)",379,null,{"$f":"D15*E15","v":0}]
[null,"STR-123-00305","F123 Tip Shield Kit (Qty 4 - 950881-0001, MOLDED, TIP COVER, ROUND, Qty 4 – 951028-0001, RING, E CLIP 3/16\")",92,null,0]
[null,"STR-123-00306","F123 Tip Wipe Assemblies Kit (Qty 2 – 950595-0001, ASSY, TIP WIPE 120C).",118,null,0]
[null,"STR-123-00314-S","F370 Modeling Base High Temperature - Pack of 16",476,null,0]
[null,"Support Removal Supplies"]
[null,"STR-300-00103","Ecoworks Cleaning Agent (case of 24)",191,null,{"$f":"D20*E20","v":0}]
[null,"STR-300-00600","WaterWorks Soluble Concentrate P400-SC case of 12 (950 gms)\n***Can only ship Ground or Overnight",191,null,{"$f":"D21*E21","v":0}]
[null,"Model Material"]
[null,"STR-331-20207","MTRL, Spool-less FDM, (S), SR-30-200CI *For F120/F770 Systems only*",761,null,{"$f":"D23*E23","v":0}]
[null,"STR-331-20307","MTRL, Spool-less FDM (M) ABS Blk, 200 ci *For F120/F770 Systems only*",784,null,0]
[null,"STR-331-20507","MTRL, Spool-Less FDM, (M), ASA, IVR, 200CI *For F120/F770 Systems Only*",839,null,0]
[null,"STR-331-20567","MTRL, Spool-Less FDM, (M), ASA, BLU, 200CI *For F120/F770 Systems Only*",839,null,{"$f":"D26*E26","v":0}]
[null,"STR-331-20557","MTRL, Spool-Less FDM, (M), ASA, BLK, 200CI *For F120/F770 Systems Only*",839,null,{"$f":"D27*E27","v":0}]
[null,"STR-331-20547","MTRL, Spool-Less FDM, (M), ASA, WHT, 200CI *For F120/F770 Systems Only*",839,null,{"$f":"D28*E28","v":0}]
[null,"STR-331-20537","MTRL, Spool-Less FDM, (M), ASA, LT GRY, 200CI *For F120/F770 Systems Only*",839,null,{"$f":"D29*E29","v":0}]
[null,"STR-331-20527","MTRL, Spool-Less FDM, (M), ASA, YEL, 200CI *For F120/F770 Systems Only*",839,null,{"$f":"D30*E30","v":0}]
[null,"STR-331-20517","MTRL, Spool-Less FDM, (M), ASA, RED, 200CI *For F120/F770 Systems Only*",839,null,{"$f":"D31*E31","v":0}]
[null,"STR-333-60101","MTRL, FDM, (M), PLA BLK, 60CI  ",80,null,0]
[null,"STR-333-60102","MTRL, FDM, (M), PLA WHT, 60CI  ",80,null,0]
[null,"STR-333-60103","MTRL, FDM, (M), PLA RED, 60CI  ",80,null,0]
[null,"STR-333-60104","MTRL, FDM, (M), PLA BLU, 60CI  ",80,null,0]
[null,"STR-333-60109","MTRL, FDM, (M), PLA LT GRY, 60CI  ",80,null,0]
[null,"STR-333-60110","MTRL, FDM, (M), PLA MD GRY, 60CI  ",80,null,0]
[null,"STR-333-60130","MTRL, FDM, (M), PLA GRN TRANS, 60 CI  ",80,null,0]
[null,"STR-333-60131","MTRL, FDM, (M), PLA NAT TRANS, 60CI  ",80,null,0]
[null,"STR-333-60132","MTRL, FDM, (M), PLA RED TRANS, 60CI  ",80,null,0]
[null,"STR-333-60133","MTRL, FDM, (M), PLA YEL TRANS, 60CI  ",80,null,{"$f":"D41*E41","v":0}]
[null,"STR-333-60134","MTRL, FDM, (M), PLA BLU TRANS, 60CI  ",80,null,{"$f":"D42*E42","v":0}]
[null,"STR-333-60300","MTRL, FDM, (M), ABSM30 IVR, 60CI  ",240,null,0]
[null,"STR-333-60301","MTRL, FDM, (M), ABSM30 BLK, 60CI  ",240,null,0]
[null,"STR-333-60302","MTRL, FDM, (M), ABSM30 WHT, 60CI  ",240,null,0]
[null,"STR-333-60303","MTRL, FDM, (M), ABSM30 RED, 60CI  ",240,null,0]
[null,"STR-333-60304","MTRL, FDM, (M), ABSM30 BLU, 60CI  ",240,null,0]
[null,"STR-333-60305","MTRL, FDM, (M), ABSM30 GRN, 60CI  ",240,null,0]
[null,"STR-333-60306","MTRL, FDM, (M), ABSM30 YEL, 60CI  ",240,null,0]
[null,"STR-333-60307","MTRL, FDM, (M), ABSM30 ORG, 60CI  ",240,null,0]
[null,"STR-333-60308","MTRL, FDM, (M), ABSM30 DK GRY, 60CI  ",240,null,0]
[null,"STR-333-60500","MTRL, FDM, (M), ASA IVR, 60CI  ",250,null,0]
[null,"STR-333-60501","MTRL, FDM, (M), ASA BLK, 60CI  ",250,null,0]
[null,"STR-333-60502","MTRL, FDM, (M), ASA WHT, 60CI  ",250,null,0]
[null,"STR-333-60503","MTRL, FDM, (M), ASA RED, 60CI  ",250,null,0]
[null,"STR-333-60504","MTRL, FDM, (M), ASA BLU, 60CI  ",250,null,0]
[null,"STR-333-60505","MTRL, FDM, (M), ASA GRN, 60CI  ",250,null,0]
[null,"STR-333-60506","MTRL, FDM, (M), ASA YEL, 60CI  ",250,null,0]
[null,"STR-333-60507","MTRL, FDM, (M), ASA ORG, 60CI  ",250,null,0]
[null,"STR-333-60508","MTRL, FDM, (M), ASA DK GRY, 60CI  ",250,null,0]
[null,"STR-333-60509","MTRL, FDM, (M), ASA LT GRY, 60CI  ",250,null,{"$f":"D61*E61","v":0}]
[null,"STR-333-60700","MTRL, FDM, (M), PC-ABS WHT, 60CI  (F370 Only)",273,null,0]
[null,"STR-333-60701","MTRL, FDM, (M), PC-ABS BLK, 60CI  (F370 Only)",273,null,0]
[null,"STR-333-90101","MTRL, FDM, (M), PLA BLK, 90CI  ",115,null,0]
[null,"STR-333-90102","MTRL, FDM, (M), PLA WHT, 90CI  ",115,null,0]
[null,"STR-333-90109","MTRL, FDM, (M), PLA LT GRY, 90CI  ",115,null,0]
[null,"STR-333-90230","MTRL, FDM,(M), ABS-ESD7 BLK, 90Ci (F370 only) ",500,null,0]
[null,"STR-333-90300","MTRL, FDM, (M), ABSM30 IVR, 90CI  ",330,null,0]
[null,"STR-333-90301","MTRL, FDM, (M), ABSM30 BLK, 90CI  ",330,null,0]
[null,"STR-333-90302","MTRL, FDM, (M), ABSM30 WHT, 90CI  ",330,null,0]
[null,"STR-333-90308","MTRL, FDM, (M), ABSM30 DK GRY, 90CI  ",330,null,0]
[null,"STR-333-90310","MTRL, FDM, (M), ABS-CF10, 90CI (NEW) ",545,null,0]
[null,"STR-333-90410","MTRL, FDM, (M), DIRAN 410MF07, 90CI (F370 only) ",500,null,0]
[null,"STR-333-90450","MTRL, FDM, (M), NYLON-CF10, 90CI (F370 CR/ F190 CR only)",562,null,0]
[null,"STR-333-90500","MTRL, FDM, (M), ASA IVR, 90CI  ",352,null,0]
[null,"STR-333-90501","MTRL, FDM, (M), ASA BLK, 90CI  ",352,null,0]
[null,"STR-333-90502","MTRL, FDM, (M), ASA WHT, 90CI  ",352,null,0]
[null,"STR-333-90509","MTRL, FDM, (M), ASA LT GRY, 90CI  ",352,null,0]
[null,"STR-333-90701","MTRL, FDM, (M), PC-ABS BLK, 90CI  (F370 Only)",375,null,0]
[null,"Elastomer"]
[null,"STR-123-00321-S","F123 SERIES ELASTOMER EXTRUSION HEAD",2095,null,{"$f":"D81*E81","v":0}]
[null,"STR-123-00330-V","F123 SERIES ELASTOMER EXTRUSION KIT, TPU 92A",2380,null,{"$f":"D82*E82","v":0}]
[null,"STR-333-60201","MTRL, FDM, (M), ELAST TPU92A, BLK, 60CI",297,null,{"$f":"D83*E83","v":0}]
[null,"Support Material  "]
[null,"STR-333-60400","Diran support - SUP400B - 60CI (F370 only) ",342,null,{"$f":"D85*E85","v":0}]
[null,"STR-333-63500","FDM QSR Support 60ci",228,null,{"$f":"D86*E86","v":0}]
[null,"Additional Items"]
[null,null,null,0,null,{"$f":"D88*E88","v":0}]
[null,null,null,0,null,{"$f":"D89*E89","v":0}]
[]
[null,null,null,null,"Total:",{"$f":"SUM(F88:F89,F61:F79,F42:F60,F23:F41,F20:F21,F7:F18,F81:F83,F85:F86)","v":0}]
[null,null,null,null,null,{"$f":"SUM(#REF!,#REF!,F11:F32,F77:F85,#REF!,#REF!,#REF!,F88:F90)","v":{"$error":"#REF!"}}]

{"sheet":"Origin One","index":7,"n_rows":77,"n_cols":6,"rows_kept":77,"cut":false,"hidden":false,"merged":[[76,1,77,2],[72,1,72,5],[68,1,68,5],[0,1,1,5],[2,1,2,5],[4,1,4,5],[5,1,5,2]]}
[]
[]
[null,"Origin One"]
[null,"Part Number","Description","$/Unit","QTY Ordered","Sub Total"]
[null,"Accessories"]
[]
[null,"STR-ORIG-00061","LOCTITE® 3D 3843 (BLACK, PACK OF 4 X 5KG) US",3500,null,{"$f":"D7*E7","v":0}]
[null,"STR-ORIG-00062","LOCTITE® 3D 3843 (CLEAR, PACK OF 6 X 1KG) US",1386,null,{"$f":"D8*E8","v":0}]
[null,"STR-ORIG-00063","LOCTITE® 3D 3843 (MATTE BLACK, PACK OF 6 X 1KG) US",1134,null,{"$f":"D9*E9","v":0}]
[null,"STR-ORIG-00064","LOCTITE® 3D 3843 (WHITE, PACK OF 6 X 1KG) US",1386,null,0]
[null,"STR-ORIG-00065","LOCTITE® 3D 3843 (WHITE, PACK OF 4 X 5KG) US",4300,null,0]
[null,"STR-ORIG-00066","LOCTITE® 3D 3955 (BLACK, PACK OF 6 X 1KG) US",2268,null,0]
[null,"STR-ORIG-00075","LOCTITE® 3D IND402 (BLACK, PACK OF 6 X 1KG) US",1575,null,0]
[null,"STR-ORIG-00076","LOCTITE® 3D IND402 (BLACK, PACK OF 4 X 5KG) US",5900,null,0]
[null,"STR-ORIG-00078","LOCTITE® 3D IND403 (BLACK, PACK OF 6 X 1KG) US",1449,null,0]
[null,"STR-ORIG-00079","LOCTITE® 3D IND403 (BLACK, PACK OF 4 X 5KG) US",4500,null,0]
[null,"STR-ORIG-00081","LOCTITE® 3D IND405 (CLEAR, PACK OF 6 X 1KG) US",1134,null,{"$f":"D17*E17","v":0}]
[null,"STR-ORIG-00082","LOCTITE® 3D MED412 (CLEAR, PACK OF 6 X 1KG) US",2709,null,0]
[null,"STR-ORIG-00083","LOCTITE® 3D MED412 (CLEAR, PACK OF 4 X 5KG) US",8500,null,{"$f":"D19*E19","v":0}]
[null,"STR-ORIG-00084","LOCTITE® 3D MED413 (CLEAR, PACK OF 6 X 1KG) US",2580,null,0]
[null,"STR-ORIG-00085","LOCTITE® 3D MED413 (CLEAR, PACK OF 4 X 5KG) US",8500,null,0]
[null,"STR-ORIG-00086","LOCTITE® 3D MED413 (WHITE, PACK OF 6 X 1KG) US",2709,null,0]
[null,"STR-ORIG-00087","LOCTITE® 3D MED413 (WHITE, PACK OF 4 X 5KG) US",8500,null,0]
[null,"STR-ORIG-00114","ULTRACUR3D® ST45 (BLACK, 1KG)",113,null,0]
[null,"STR-ORIG-00116","ULTRACUR3D® ST45 (CLEAR, PACK OF 6 X 1KG)",670,null,0]
[null,null,null,null,null,{"$f":"D26*E26","v":0}]
[null,null,null,null,null,0]
[null,null,null,null,null,0]
[null,null,null,null,null,0]
[null,null,null,null,null,0]
[null,null,null,null,null,0]
[null,null,null,null,null,0]
[null,null,null,null,null,0]
[null,null,null,null,null,0]
[null,null,null,null,null,0]
[null,null,null,null,null,0]
[null,null,null,null,null,0]
[null,null,null,null,null,0]
[null,null,null,null,null,0]
[null,null,null,null,null,0]
[null,null,null,null,null,0]
[null,null,null,null,null,0]
[null,null,null,null,null,0]
[null,null,null,null,null,0]
[null,null,null,null,null,0]
[null,null,null,null,null,0]
[null,null,null,null,null,0]
[null,null,null,null,null,0]
[null,null,null,null,null,0]
[null,null,null,null,null,0]
[null,null,null,null,null,0]
[null,null,null,null,null,0]
[null,null,null,null,null,0]
[null,null,null,null,null,0]
[null,null,null,null,null,0]
[null,null,null,null,null,0]
[null,null,null,null,null,0]
[null,null,null,null,null,0]
[null,null,null,null,null,0]
[null,null,null,null,null,0]
[null,null,null,null,null,0]
[null,null,null,null,null,0]
[null,null,null,null,null,0]
[null,null,null,null,null,0]
[null,null,null,null,null,0]
[null,null,null,null,null,0]
[null,null,null,null,null,0]
[null,null,null,null,null,{"$f":"D68*E68","v":0}]
[null,"Elastomer"]
[null,null,null,null,null,{"$f":"D70*E70","v":0}]
[null,null,null,null,null,{"$f":"D71*E71","v":0}]
[null,null,null,null,null,0]
[null,"Support Material  "]
[null,null,null,null,null,{"$f":"D74*E74","v":0}]
[null,null,null,null,null,0]
[]
[null,null,null,null,"Total:",{"$f":"SUM(F51:F68,F32:F50,F19:F31,F17:F18,F7:F16,F70:F72,F74:F75)","v":0}]

{"sheet":"Dimension-Fortus 250","index":8,"n_rows":53,"n_cols":7,"rows_kept":53,"cut":false,"hidden":false,"merged":[[48,1,48,5],[54,1,55,2],[54,3,55,5],[52,1,53,2],[52,4,53,4],[52,5,53,5],[40,1,40,5],[37,1,37,5],[8,1,8,5],[0,1,1,5],[2,1,2,5],[4,1,4,5],[18,1,18,5],[22,1,22,5],[31,1,31,5],[27,1,27,5],[38,1,38,5]]}
[null,null,null,null,null,null,"        "]
[]
[null,"DIMENSION"]
[null,"Part Number","Description","$/Unit","QTY Ordered","Sub Total"]
[null,"Support Removal and Supplies"]
[null,"STR-300-00103","Ecoworks Cleaning Agent (case of 24)",191,null,{"$f":"D6*E6","v":0}]
[null,"STR-300-00600","WaterWorks Soluble Concentrate P400-SC case of 12 (950 gms)\n***Can only ship Ground or Overnight",191,null,{"$f":"D7*E7","v":0}]
[]
[null,"Model Material- For Dimension Elite, BST1200es and SST 1200es Systems Only"]
[null,"STR-340-21200","P430 ABSplus Cartridge Ivory",394,null,{"$f":"D10*E10","v":0}]
[null,"STR-340-21201","P430 ABSplus Cartridge White",394,null,0]
[null,"STR-340-21202","P430 ABSplus Cartridge Black",394,null,0]
[null,"STR-340-21203","P430 ABSplus Cartridge Dark Gray",394,null,0]
[null,"STR-340-21204","P430 ABSplus Cartridge Red",394,null,0]
[null,"STR-340-21205","P430 ABSplus Cartridge Blue",394,null,0]
[null,"STR-340-21206","P430 ABSplus Cartridge Nectarine",394,null,0]
[null,"STR-340-21207","P430 ABSplus Cartridge Fluorescent Yellow",394,null,0]
[null,"STR-340-21208","P430 ABSplus Cartridge Olive Green",394,null,0]
[null,"Support Material"]
[null,"STR-340-30000","P400-R ABS Breakaway Support Material Cartridge",394,null,{"$f":"D20*E20","v":0}]
[null,"STR-340-30500","SR-30 Soluble Support Material Cartridge",367,null,{"$f":"D21*E21","v":0}]
[null,"STR-340-30200","P400-SR Soluble Support Material Cartridge",380,null,0]
[null,"Tip Replacement Kits"]
[null,"STR-540-10101","BST 1200es Tip Replacement kit (Version 7 .xBuild 3000 and higher)",150,null,{"$f":"D24*E24","v":0}]
[null,"STR-540-10500","SST 1200es Tip Replacement kit (Version 7 .xBuild 2000 and lower)",182,null,0]
[null,"STR-512-10000","KIT, 250MC Tip Replacement Kit",180,null,{"$f":"D26*E26","v":0}]
[null,"STR-540-10600","SST 1200es Tip Replacement kit (Version 7 .xBuild 3000 and higher)",180,null,0]
[null,"Modeling Bases"]
[]
[null,"STR-340-00200","Plastic Modeling Bases 203x203mm/8x8in (case of 24)",164,null,{"$f":"D30*E30","v":0}]
[null,"STR-340-00300","Plastic Modeling Bases 254x254mm/10x10in (case of 24)",164,null,0]
[null,"Miscellaneous"]
[98,"STR-540-00101","Brush/Flicker Assembly (S/N P1184 and above)",95,null,{"$f":"D33*E33","v":0}]
[null,"STR-540-00200","BST 1200es/SST 1200es Tip Wipe Assembly",55,null,0]
[null,"STR-540-10800","BST/SST 1200/1200es White Tip Covers, Ver 7 .x Build 2000 and lower (pkg of 8)",76,null,0]
[null,"STR-540-20500","BST/SST 1200/1200es Teflon Shield Kit *",25,null,0]
[]
[null,"LEGACY"]
[null,"Tips- Legacy (For Dimension BST, SST, BST 768, SST 768, BST 1200 and SST 1200 systems only)"]
[null,"STR-540-10300","SST 1200 Tip Replacement Kit",277,null,0]
[null,"Model Material- Legacy (For Dimension BST, SST, BST 768, SST 768, BST 1200 and SST 1200 systems only)"]
[null,"STR-340-20000","P400 ABS Cartridge White",394,null,{"$f":"D42*E42","v":0}]
[null,"STR-340-20200","P400 ABS Cartridge Black",394,null,0]
[null,"STR-340-20300","P400 ABS Cartridge Red",394,null,0]
[null,"STR-340-20400","P400 ABS Cartridge Blue",394,null,{"$f":"D45*E45","v":0}]
[null,"STR-340-20500","P400 ABS Cartridge Green",394,null,0]
[null,"STR-340-20600","P400 ABS Cartridge Yellow",394,null,{"$f":"D47*E47","v":0}]
[null,"STR-340-20800","P400 ABS Cartridge Steel Gray",394,null,0]
[null,"Additional Items (add if not listed above)"]
[null,null,null,null,null,{"$f":"D50*E50","v":0}]
[null,null,null,null,null,{"$f":"D51*E51","v":0}]
[]
[null,null,null,null,"Total:",{"$f":"SUM(F6:F22,F24:F48,F50:F51)","v":0}]